lending/lending_fUSD_20260110
["ID","MTS","AMOUNT","RATE_DAILY","PERIOD"]
[401206412,1768043451551,-150.0,0.0001767,2]
[401206413,1768043451561,-260.75602621,0.00017673,2]
[401206414,1768043451570,-188.04348929,0.00017673,2]
[401206415,1768043451581,-252.68743637,0.00017673,2]
[401206416,1768043451591,-213.87423394,0.00017673,2]
[401206417,1768043451601,-226.31905987,0.00017673,2]
[401206418,1768043451610,-177.21892515,0.00017673,2]
[401206419,1768043451620,-183.0,0.0001768,2]
[401206420,1768043451629,-150.0,0.00017682,2]
[401206421,1768043451639,-260.75602621,0.00017691,2]
[401206422,1768043451649,-188.04348929,0.00017691,2]
[401206423,1768043451658,-252.68743637,0.00017691,2]
[401206424,1768043451668,-213.87423394,0.00017691,2]
[401206425,1768043451678,-226.31905987,0.00017691,2]
[401206426,1768043451689,-177.21892515,0.00017691,2]
[401206427,1768043451700,-1887.20841984,0.00017699,2]
[401206428,1768043451709,-150.0,0.000177,2]
[401206429,1768043451719,-561.2,0.00017703,2]
[401206430,1768043451728,-150.0,0.00017707,2]
[401206431,1768043451737,-1000.0,0.00017709,2]
[401206432,1768043451747,-260.75602621,0.00017709,2]
[401206433,1768043451756,-188.04348929,0.00017709,2]
[401206434,1768043451765,-252.68743637,0.00017709,2]
[401206435,1768043451775,-213.87423394,0.00017709,2]
[401206436,1768043451784,-226.31905987,0.00017709,2]
[401206437,1768043451793,-177.21892515,0.00017709,2]
[401206438,1768043451802,-370.0,0.00017712,2]
[401206439,1768043451812,-150.0,0.00017718,2]
[401206440,1768043451821,-150.0,0.00017723,2]
[401206441,1768043451831,-387.13656056,0.00017726,2]
[401206442,1768043451841,-1000.0,0.00017727,2]
[401206443,1768043451850,-260.75602621,0.00017727,2]
[401206444,1768043451860,-188.04348929,0.00017727,2]
[401206445,1768043451869,-252.68743637,0.00017727,2]
[401206446,1768043451879,-213.87423394,0.00017727,2]
[401206447,1768043451889,-226.31905987,0.00017727,2]
[401206448,1768043451899,-177.21892515,0.00017727,2]
[401206449,1768043451910,-1197.7,0.00017728,2]
[401206450,1768043451920,-9999.99,0.00017728,2]
[401206451,1768043451930,-150.0,0.0001773,2]
[401206452,1768043451940,-7554.21886386,0.0001773,2]
[401206453,1768043451950,-454.0,0.00017733,2]
[401206454,1768043451960,-1000.0,0.00017737,2]
[401206455,1768043451970,-260.75602621,0.00017745,2]
[401206456,1768043451981,-188.04348929,0.00017745,2]
[401206457,1768043451990,-252.68743637,0.00017745,2]
[401206458,1768043452000,-213.87423394,0.00017745,2]
[401206459,1768043452010,-226.31905987,0.00017745,2]
[401206460,1768043452020,-177.21892515,0.00017745,2]
[401206461,1768043452030,-150.0,0.00017749,2]
[401206462,1768043452039,-150.0,0.00017753,2]
[401206463,1768043452049,-1000.0,0.00017753,2]
[401206464,1768043452058,-1000.0,0.00017754,2]
[401206465,1768043452068,-1267.487,0.0001776,2]
[401206466,1768043452078,-505.594,0.0001776,2]
[401206467,1768043452087,-915.241,0.0001776,2]
[401206468,1768043452096,-1202.614,0.0001776,2]
[401206469,1768043452105,-1424.982,0.0001776,2]
[401206470,1768043452115,-2441.065,0.0001776,2]
[401206471,1768043452126,-6554.0,0.0001776,2]
[401206472,1768043452137,-566.0,0.0001776,2]
[401206473,1768043452147,-150.0,0.0001776,2]
[401206474,1768043452157,-150.0,0.0001776,2]
[401206475,1768043452168,-1000.0,0.00017763,2]
[401206476,1768043452177,-260.75602621,0.00017764,2]
[401206477,1768043452188,-188.04348929,0.00017764,2]
[401206478,1768043452197,-252.68743637,0.00017764,2]
[401206479,1768043452207,-213.87423394,0.00017764,2]
[401206480,1768043452216,-226.31905987,0.00017764,2]
[401206481,1768043452226,-177.21892515,0.00017764,2]
[401206482,1768043452236,-370.0,0.00017764,2]
[401206483,1768043452246,-1000.0,0.00017771,2]
[401206484,1768043452255,-150.0,0.00017771,2]
[401206485,1768043452265,-150.0,0.00017775,2]
[401206486,1768043452275,-150.0,0.00017775,2]
[401206487,1768043452284,-561.2,0.00017777,2]
[401206488,1768043452293,-260.75602621,0.00017782,2]
[401206489,1768043452303,-188.04348929,0.00017782,2]
[401206490,1768043452311,-252.68743637,0.00017782,2]
[401206491,1768043452321,-213.87423394,0.00017782,2]
[401206492,1768043452330,-226.31905987,0.00017782,2]
[401206493,1768043452340,-177.21892515,0.00017782,2]
[401206494,1768043452349,-1000.0,0.00017782,2]
[401206495,1768043452359,-1000.0,0.00017783,2]
[401206496,1768043452368,-1000.0,0.00017786,2]
[401206497,1768043452378,-1000.0,0.00017788,2]
[401206498,1768043452387,-150.0,0.00017788,2]
[401206499,1768043452396,-150.0,0.0001779,2]
[401206500,1768043452406,-150.0,0.00017791,2]
[401206501,1768043452415,-150.0,0.00017792,2]
[401206502,1768043452425,-1000.0,0.00017793,2]
[401206503,1768043452435,-1000.0,0.00017799,2]
[401206504,1768043452444,-1000.0,0.000178,2]
[401206505,1768043452454,-260.75602621,0.000178,2]
[401206506,1768043452464,-188.04348929,0.000178,2]
[401206507,1768043452473,-252.68743637,0.000178,2]
[401206508,1768043452482,-213.87423394,0.000178,2]
[401206509,1768043452492,-226.31905987,0.000178,2]
[401206510,1768043452502,-177.21892515,0.000178,2]
[401206511,1768043452512,-150.0,0.00017807,2]
[401206512,1768043452521,-207.26988174,0.00017808,2]
[401206513,1768043452531,-500.0,0.00017808,2]
[401206514,1768043452540,-454.0,0.00017812,2]
[401206515,1768043452550,-1000.0,0.00017817,2]
[401206516,1768043452560,-1000.0,0.00017818,2]
[401206517,1768043452569,-260.75602621,0.00017818,2]
[401206518,1768043452579,-188.04348929,0.00017818,2]
[401206519,1768043452588,-252.68743637,0.00017818,2]
[401206520,1768043452598,-213.87423394,0.00017818,2]
[401206521,1768043452607,-226.31905987,0.00017818,2]
[401206522,1768043452617,-177.21892515,0.00017818,2]
[401206523,1768043452627,-150.0,0.0001782,2]
[401206524,1768043452636,-4000.0,0.0001782,2]
[401206525,1768043452646,-4000.0,0.0001782,2]
[401206526,1768043452656,-159.35537069,0.0001782,2]
[401206527,1768043452665,-21412.0,0.0001782,2]
[401206528,1768043452675,-150.0,0.00017824,2]
[401206529,1768043452685,-1000.0,0.00017829,2]
[401206530,1768043452694,-24666.13896743,0.0001783,2]
[401206531,1768043452703,-4000.0,0.0001783,2]
[401206532,1768043452713,-150.0,0.00017833,2]
[401206533,1768043452723,-1000.0,0.00017833,2]
[401206534,1768043452733,-1000.0,0.00017833,2]
[401206535,1768043452742,-260.75602621,0.00017836,2]
[401206536,1768043452753,-188.04348929,0.00017836,2]
[401206537,1768043452762,-252.68743637,0.00017836,2]
[401206538,1768043452771,-213.87423394,0.00017836,2]
[401206539,1768043452781,-226.31905987,0.00017836,2]
[401206540,1768043452790,-177.21892515,0.00017836,2]
[401206541,1768043452801,-1000.0,0.00017837,2]
[401206542,1768043452811,-1000.0,0.00017837,2]
[401206543,1768043452820,-866.0,0.00017837,2]
[401206544,1768043452830,-191.96,0.00017839,2]
[401206545,1768043452840,-1000.0,0.00017842,2]
[401206546,1768043452849,-150.0,0.00017844,2]
[401206547,1768043452859,-334.5472959,0.00017844,2]
[401206548,1768043452869,-151.0,0.00017844,2]
[401206549,1768043452879,-642.94,0.00017844,2]
[401206550,1768043452888,-194.72792766,0.00017844,2]
[401206551,1768043452897,-1000.0,0.00017845,2]
[401206552,1768043452908,-454.0,0.00017848,2]
[401206553,1768043452918,-150.0,0.0001785,2]
[401206554,1768043452927,-561.2,0.00017851,2]
[401206555,1768043452937,-1000.0,0.00017852,2]
[401206556,1768043452947,-260.75602621,0.00017855,2]
[401206557,1768043452956,-188.04348929,0.00017855,2]
[401206558,1768043452965,-252.68743637,0.00017855,2]
[401206559,1768043452975,-213.87423394,0.00017855,2]
[401206560,1768043452984,-226.31905987,0.00017855,2]
[401206561,1768043452994,-177.21892515,0.00017855,2]
[401206562,1768043453003,-2000.0,0.00017856,2]
[401206563,1768043453013,-150.0,0.00017859,2]
[401206564,1768043453023,-1000.0,0.00017859,2]
[401206565,1768043453034,-4000.0,0.0001786,2]
[401206566,1768043453044,-150.0,0.00017862,2]
[401206567,1768043453053,-500.0,0.00017863,2]
[401206568,1768043453062,-1000.0,0.00017867,2]
[401206569,1768043453071,-1000.0,0.00017868,2]
[401206570,1768043453080,-1000.0,0.00017869,2]
[401206571,1768043453090,-154.50124005,0.00017871,2]
[401206572,1768043453100,-1000.0,0.00017872,2]
[401206573,1768043453109,-260.75602621,0.00017873,2]
[401206574,1768043453119,-188.04348929,0.00017873,2]
[401206575,1768043453128,-252.68743637,0.00017873,2]
[401206576,1768043453138,-213.87423394,0.00017873,2]
[401206577,1768043453147,-226.31905987,0.00017873,2]
[401206578,1768043453157,-177.21892515,0.00017873,2]
[401206579,1768043453167,-150.0,0.00017874,2]
[401206580,1768043453176,-150.0,0.0001788,2]
[401206581,1768043453186,-150.0,0.0001788,2]
[401206582,1768043453195,-4000.0,0.0001788,2]
[401206583,1768043453205,-200.0,0.00017881,2]
[401206584,1768043453214,-200.0,0.00017881,2]
[401206585,1768043453224,-1000.0,0.00017882,2]
[401206586,1768043453234,-1652.91,0.00017889,2]
[401206587,1768043453243,-500.0,0.0001789,2]
[401206588,1768043453253,-500.0,0.0001789,2]
[401206589,1768043453262,-353.94920012,0.0001789,2]
[401206590,1768043453274,-500.0,0.0001789,2]
[401206591,1768043453283,-1000.0,0.0001789,2]
[401206592,1768043453293,-260.75602621,0.00017891,2]
[401206593,1768043453302,-188.04348929,0.00017891,2]
[401206594,1768043453312,-252.68743637,0.00017891,2]
[401206595,1768043453322,-213.87423394,0.00017891,2]
[401206596,1768043453331,-226.31905987,0.00017891,2]
[401206597,1768043453341,-177.21892515,0.00017891,2]
[401206598,1768043453351,-25000.0,0.00017891,3]
[401206599,1768043453361,-1000.0,0.00017893,2]
[401206600,1768043453371,-1000.0,0.00017894,2]
[401206601,1768043453380,-150.0,0.00017894,2]
[401206602,1768043453390,-1000.0,0.00017898,2]
[401206603,1768043453399,-629.25,0.00017899,2]
[401206604,1768043453408,-25000.0,0.000179,3]
[401206605,1768043453418,-151.0614,0.000179,2]
[401206606,1768043453427,-591.38897096,0.000179,2]
[401206607,1768043453436,-10000.0,0.000179,2]
[401206608,1768043453446,-1000.0,0.000179,2]
[401206609,1768043453456,-6228.92016198,0.000179,3]
[401206610,1768043453465,-723.68584315,0.000179,2]
[401206611,1768043453476,-1000.0,0.000179,2]
[401206612,1768043453486,-814.26211942,0.000179,2]
[401206613,1768043453495,-179.38897292,0.000179,3]
[401206614,1768043453505,-1304.10068951,0.000179,2]
[401206615,1768043453515,-1304.10068938,0.000179,2]
[401206616,1768043453525,-1304.10068938,0.000179,2]
[401206617,1768043453535,-1304.10068938,0.000179,2]
[401206618,1768043453545,-1304.10068938,0.000179,2]
[401206619,1768043453555,-1304.10068938,0.000179,2]
[401206620,1768043453564,-1304.10068938,0.000179,2]
[401206621,1768043453574,-3039.43303365,0.000179,2]
[401206622,1768043453583,-1304.10068938,0.000179,2]
[401206623,1768043453593,-1304.10068938,0.000179,2]
[401206624,1768043453603,-1304.10068938,0.000179,2]
[401206625,1768043453613,-1304.10068938,0.000179,2]
[401206626,1768043453623,-1349.09797668,0.000179,2]
[401206627,1768043453632,-3184.28787727,0.000179,2]
[401206628,1768043453642,-1304.10068938,0.000179,2]
[401206629,1768043453652,-1304.10068938,0.000179,2]
[401206630,1768043453662,-1887.20841984,0.000179,2]
[401206631,1768043453671,-1304.10068938,0.000179,2]
[401206632,1768043453681,-1000.0,0.00017907,2]
[401206633,1768043453691,-1000.0,0.00017907,2]
[401206634,1768043453701,-260.75602621,0.00017909,2]
[401206635,1768043453711,-188.04348929,0.00017909,2]
[401206636,1768043453720,-252.68743637,0.00017909,2]
[401206637,1768043453730,-213.87423394,0.00017909,2]
[401206638,1768043453740,-226.31905987,0.00017909,2]
[401206639,1768043453749,-177.21892515,0.00017909,2]
[401206640,1768043453759,-150.0,0.0001791,2]
[401206641,1768043453768,-4000.0,0.0001791,2]
[401206642,1768043453778,-500.0,0.00017912,2]
[401206643,1768043453787,-1000.0,0.00017914,2]
[401206644,1768043453797,-150.0,0.00017916,2]
[401206645,1768043453806,-500.0,0.00017918,2]
[401206646,1768043453815,-1000.0,0.00017919,2]
[401206647,1768043453825,-1000.0,0.00017925,2]
[401206648,1768043453835,-561.2,0.00017926,2]
[401206649,1768043453846,-260.75602621,0.00017927,2]
[401206650,1768043453856,-188.04348929,0.00017927,2]
[401206651,1768043453866,-252.68743637,0.00017927,2]
[401206652,1768043453877,-213.87423394,0.00017927,2]
[401206653,1768043453887,-226.31905987,0.00017927,2]
[401206654,1768043453896,-177.21892515,0.00017927,2]
[401206655,1768043453906,-1000.0,0.00017929,2]
[401206656,1768043453919,-150.0,0.00017929,2]
[401206657,1768043453929,-150.0,0.00017931,2]
[401206658,1768043453939,-150.0,0.00017938,2]
[401206659,1768043453949,-150.0,0.0001794,2]
[401206660,1768043453959,-1000.0,0.00017945,2]
[401206661,1768043453968,-260.75602621,0.00017945,2]
[401206662,1768043453979,-188.04348929,0.00017945,2]
[401206663,1768043453990,-252.68743637,0.00017945,2]
[401206664,1768043453999,-213.87423394,0.00017945,2]
[401206665,1768043454008,-226.31905987,0.00017945,2]
[401206666,1768043454018,-177.21892515,0.00017945,2]
[401206667,1768043454028,-181.00537575,0.00017946,2]
[401206668,1768043454038,-150.0,0.00017958,2]
[401206669,1768043454048,-260.75602621,0.00017964,2]
[401206670,1768043454058,-188.04348929,0.00017964,2]
[401206671,1768043454068,-252.68743637,0.00017964,2]
[401206672,1768043454078,-213.87423394,0.00017964,2]
[401206673,1768043454088,-226.31905987,0.00017964,2]
[401206674,1768043454098,-177.21892515,0.00017964,2]
[401206675,1768043454107,-1000.0,0.00017964,2]
[401206676,1768043454117,-1000.0,0.00017964,2]
[401206677,1768043454126,-1000.0,0.00017964,2]
[401206678,1768043454136,-150.0,0.00017965,2]
[401206679,1768043454146,-1000.0,0.00017965,2]
[401206680,1768043454155,-274.0,0.00017966,2]
[401206681,1768043454165,-1000.0,0.00017967,2]
[401206682,1768043454174,-150.0,0.0001797,2]
[401206683,1768043454183,-500.0,0.00017972,2]
[401206684,1768043454193,-303.0,0.00017973,2]
[401206685,1768043454202,-500.0,0.00017973,2]
[401206686,1768043454211,-500.0,0.00017973,2]
[401206687,1768043454221,-500.0,0.00017973,2]
[401206688,1768043454230,-500.0,0.00017973,2]
[401206689,1768043454240,-500.0,0.00017973,2]
[401206690,1768043454252,-500.0,0.00017973,2]
[401206691,1768043454261,-500.0,0.00017973,2]
[401206692,1768043454271,-500.0,0.00017973,2]
[401206693,1768043454280,-150.34167383,0.00017973,2]
[401206694,1768043454290,-610.19552731,0.00017973,2]
[401206695,1768043454299,-641.77796518,0.00017973,2]
[401206696,1768043454308,-500.0,0.00017973,2]
[401206697,1768043454318,-260.97339631,0.00017973,2]
[401206698,1768043454327,-500.0,0.00017973,2]
[401206699,1768043454336,-500.0,0.00017973,2]
[401206700,1768043454346,-300.29995774,0.00017973,2]
[401206701,1768043454355,-500.0,0.00017973,2]
[401206702,1768043454364,-500.0,0.00017973,2]
[401206703,1768043454373,-500.0,0.00017973,2]
[401206704,1768043454382,-500.0,0.00017973,2]
[401206705,1768043454391,-191.10319937,0.00017973,2]
[401206706,1768043454400,-501.2767774,0.00017973,2]
[401206707,1768043454409,-500.0,0.00017973,2]
[401206708,1768043454418,-500.0,0.00017973,2]
[401206709,1768043454427,-500.0,0.00017973,2]
[401206710,1768043454436,-500.0,0.00017973,2]
[401206711,1768043454446,-500.0,0.00017973,2]
[401206712,1768043454455,-500.0,0.00017973,2]
[401206713,1768043454464,-500.0,0.00017973,2]
[401206714,1768043454474,-500.0,0.00017973,2]
[401206715,1768043454483,-500.0,0.00017973,2]
[401206716,1768043454492,-500.0,0.00017973,2]
[401206717,1768043454501,-500.0,0.00017973,2]
[401206718,1768043454511,-588.0072514,0.00017973,2]
[401206719,1768043454520,-500.0,0.00017973,2]
[401206720,1768043454529,-433.9562915,0.00017973,2]
[401206721,1768043454538,-500.0,0.00017973,2]
[401206722,1768043454548,-500.0,0.00017973,2]
[401206723,1768043454557,-500.0,0.00017973,2]
[401206724,1768043454566,-500.0,0.00017973,2]
[401206725,1768043454575,-500.85151996,0.00017973,2]
[401206726,1768043454585,-500.0,0.00017973,2]
[401206727,1768043454594,-500.0,0.00017973,2]
[401206728,1768043454603,-500.0,0.00017973,2]
[401206729,1768043454612,-500.0,0.00017973,2]
[401206730,1768043454622,-500.0,0.00017973,2]
[401206731,1768043454631,-500.0,0.00017973,2]
[401206732,1768043454641,-500.0,0.00017973,2]
[401206733,1768043454650,-500.0,0.00017973,2]
[401206734,1768043454659,-571.47009533,0.00017973,2]
[401206735,1768043454668,-150.0,0.00017973,2]
[401206736,1768043454678,-150.0,0.00017973,2]
[401206737,1768043454687,-1000.0,0.00017974,2]
[401206738,1768043454696,-1000.0,0.00017981,2]
[401206739,1768043454705,-1000.0,0.00017981,2]
[401206740,1768043454715,-260.75602621,0.00017982,2]
[401206741,1768043454724,-188.04348929,0.00017982,2]
[401206742,1768043454733,-252.68743637,0.00017982,2]
[401206743,1768043454743,-213.87423394,0.00017982,2]
[401206744,1768043454752,-226.31905987,0.00017982,2]
[401206745,1768043454761,-177.21892515,0.00017982,2]
[401206746,1768043454770,-500.0,0.00017982,2]
[401206747,1768043454779,-1000.0,0.00017984,2]
[401206748,1768043454789,-5912.4958686,0.00017984,2]
[401206749,1768043454798,-10051.2429766,0.00017984,2]
[401206750,1768043454807,-150.0,0.00017985,2]
[401206751,1768043454816,-1000.0,0.00017989,2]
[401206752,1768043454826,-2157.29852259,0.0001799,2]
[401206753,1768043454835,-2157.29852259,0.0001799,2]
[401206754,1768043454844,-1000.0,0.00017994,2]
[401206755,1768043454854,-404.80283942,0.00017997,2]
[401206756,1768043454864,-500.0,0.00017997,2]
[401206757,1768043454874,-500.0,0.00017997,2]
[401206758,1768043454883,-500.0,0.00017997,2]
[401206759,1768043454892,-500.0,0.00017997,2]
[401206760,1768043454901,-300.0,0.00017997,2]
[401206761,1768043454914,-666.0,0.00017997,2]
[401206762,1768043454923,-435729.2781858,0.00017998,2]
[401206763,1768043454932,-217864.6390929,0.00017998,2]
[401206764,1768043454942,-46637.0822974,0.00017998,2]
[401206765,1768043454951,-151.0,0.00017998,2]
[401206766,1768043454961,-409.605001,0.00017998,2]
[401206767,1768043454972,-409.605001,0.00017998,2]
[401206768,1768043454981,-409.605001,0.00017998,2]
[401206769,1768043454991,-409.605001,0.00017998,2]
[401206770,1768043455002,-151.0,0.00017998,2]
[401206771,1768043455011,-151.0,0.00017998,2]
[401206772,1768043455022,-151.0,0.00017998,2]
[401206773,1768043455032,-151.0,0.00017998,2]
[401206774,1768043455044,-244.364914,0.00017998,2]
[401206775,1768043455055,-151.0,0.00017998,2]
[401206776,1768043455065,-151.0,0.00017998,2]
[401206777,1768043455076,-201.99217246,0.00017998,2]
[401206778,1768043455087,-151.0,0.00017998,2]
[401206779,1768043455097,-151.0,0.00017998,2]
[401206780,1768043455107,-151.0,0.00017998,2]
[401206781,1768043455116,-151.0,0.00017998,2]
[401206782,1768043455125,-151.0,0.00017998,2]
[401206783,1768043455135,-151.0,0.00017998,2]
[401206784,1768043455144,-151.0,0.00017998,2]
[401206785,1768043455153,-151.0,0.00017998,2]
[401206786,1768043455162,-151.0,0.00017998,2]
[401206787,1768043455171,-459.518769,0.00017998,2]
[401206788,1768043455181,-459.518769,0.00017998,2]
[401206789,1768043455190,-459.518769,0.00017998,2]
[401206790,1768043455200,-459.518769,0.00017998,2]
[401206791,1768043455209,-151.0,0.00017998,2]
[401206792,1768043455219,-151.0,0.00017998,2]
[401206793,1768043455229,-151.0,0.00017998,2]
[401206794,1768043455239,-466.385678,0.00017998,2]
[401206795,1768043455249,-466.385678,0.00017998,2]
[401206796,1768043455259,-466.385678,0.00017998,2]
[401206797,1768043455268,-466.385678,0.00017998,2]
[401206798,1768043455278,-151.0,0.00017998,2]
[401206799,1768043455287,-151.0,0.00017998,2]
[401206800,1768043455298,-232.784309,0.00017998,2]
[401206801,1768043455307,-1337.994588,0.00017998,2]
[401206802,1768043455534,-209.443606,0.00017998,2]
[401206803,1768043455544,-769.26786,0.00017998,2]
[401206804,1768043455556,-1337.994588,0.00017998,2]
[401206805,1768043455566,-769.26786,0.00017998,2]
[401206806,1768043455576,-209.443606,0.00017998,2]
[401206807,1768043455585,-1337.994588,0.00017998,2]
[401206808,1768043455595,-769.26786,0.00017998,2]
[401206809,1768043455604,-209.443606,0.00017998,2]
[401206810,1768043455614,-769.26786,0.00017998,2]
[401206811,1768043455624,-209.443606,0.00017998,2]
[401206812,1768043455633,-1337.994588,0.00017998,2]
[401206813,1768043455643,-151.0,0.00017998,2]
[401206814,1768043455653,-300.0,0.00017998,2]
[401206815,1768043455663,-35436.95025698,0.00017998,2]
[401206816,1768043455672,-9479.13263399,0.00017998,4]
[401206817,1768043455682,-1006.5165,0.00017999,2]
[401206818,1768043455692,-308.3612929,0.00017999,2]
[401206819,1768043455701,-500.0,0.00017999,2]
[401206820,1768043455711,-500.0,0.00017999,2]
[401206821,1768043455720,-500.0,0.00017999,2]
[401206822,1768043455730,-515.68252229,0.00017999,2]
[401206823,1768043455739,-1000.0,0.00017999,2]
[401206824,1768043455749,-300.0,0.00017999,2]
[401206825,1768043455758,-666.0,0.00017999,2]
[401206826,1768043455768,-500.0,0.00017999,2]
[401206827,1768043455777,-437.58562247,0.00017999,2]
[401206828,1768043455786,-300.0,0.00017999,2]
[401206829,1768043455796,-260.75602621,0.00018,2]
[401206830,1768043455805,-188.04348929,0.00018,2]
[401206831,1768043455815,-252.68743637,0.00018,2]
[401206832,1768043455825,-196.21798024,0.00018,2]
[401206833,1768043455834,-223.10788253,0.00018,2]
[401206834,1768043455844,-298.52493072,0.00018,2]
[401206835,1768043455854,-213.87423394,0.00018,2]
[401206836,1768043455863,-156.68286018,0.00018,2]
[401206837,1768043455873,-216.79771002,0.00018,2]
[401206838,1768043455883,-226.31905987,0.00018,2]
[401206839,1768043455892,-178.17676299,0.00018,2]
[401206840,1768043455902,-157.59943203,0.00018,2]
[401206841,1768043455913,-231.22039699,0.00018,2]
[401206842,1768043455924,-252.12379273,0.00018,2]
[401206843,1768043455934,-247.12115074,0.00018,2]
[401206844,1768043455945,-177.21892515,0.00018,2]
[401206845,1768043455957,-644751.93642949,0.00018,2]
[401206846,1768043455981,-8568.3,0.00018,2]
[401206847,1768043456002,-2409.62510599,0.00018,2]
[401206848,1768043456070,674.7,0.00014855,2]
[401206849,1768043456154,-151.0,0.00017998,2]
[401206850,1768043456164,-151.0,0.00017998,2]
[401206851,1768043456176,-151.0,0.00017998,2]
[401206852,1768043456187,-1050.77332105,0.00018,2]
[401206853,1768043456199,-623.85962557,0.00018,2]
[401206854,1768043456211,-1002.69592471,0.00018,2]
[401206855,1768043456228,-2786.1885218,0.00018,2]
[401206856,1768043456240,-3835.67758016,0.00018,2]
[401206857,1768043456255,-459.94361421,0.00018,2]
[401206858,1768043456266,-401.22979693,0.00018,2]
[401206859,1768043456277,-2661912.6941148,0.00018,2]
[401206860,1768043456294,-4145.04389069,0.00018,2]
[401206861,1768043456305,-551.75042112,0.00018,2]
[401206862,1768043456316,-659.53743416,0.00018,2]
[401206863,1768043456326,-2584.14950502,0.00018,2]
[401206864,1768043456341,-874.11349067,0.00018,2]
[401206865,1768043456352,-581.77229684,0.00018,2]
[401206866,1768043456462,-457.43927024,0.00016794,2]
[401206867,1768043456475,-259.084,0.00016794,2]
[401206868,1768043456486,-1243.86456691,0.00016794,2]
[401206869,1768043456497,-1122.19936888,0.00016794,2]
[401206870,1768043456509,-6862.57887246,0.00016794,2]
[401206871,1768043456522,-19476.64048241,0.00016794,2]
[401206872,1768043456532,-227.12934847,0.00017189,2]
[401206873,1768043456542,-1304.10068938,0.000179,2]
[401206874,1768043456551,-212.55307452,0.000179,2]
[401206875,1768043456561,-151.0,0.00017998,2]
[401206876,1768043456571,-151.0,0.00017998,2]
[401206877,1768043456580,-160480.33532555,0.00018,2]
[401206878,1768043456596,-773.11986588,0.0001776,2]
[401206879,1768043456608,-908.74776263,0.0001776,2]
[401206880,1768043456780,-906.0,0.0001776,2]
[401206881,1768043456803,-2232.13237149,0.0001776,2]
[401206882,1768043456813,-911.81510462,0.000179,2]
[401206883,1768043456825,-392.28558476,0.000179,2]
[401206884,1768043456835,-36873.56438016,0.00018,2]
[401206885,1768043466841,-300.0,0.00015397,2]
[401206886,1768043493573,1049.912,0.0001509,2]
[401206887,1768043493770,154.861,0.0001509,2]
[401206888,1768043522163,300.0,0.00015397,2]
[401206889,1768043595599,1200.0,0.00015397,2]
[401206890,1768043617760,162.23524895,0.00015298,2]
[401206891,1768043625073,162.23524895,0.00015298,2]
[401206892,1768043641223,300.0,0.00015397,2]
[401206893,1768043648880,-25000.0,0.00015398,2]
[401206894,1768043701296,1200.0,0.00015397,2]
[401206895,1768043701330,300.0,0.00015397,2]
[401206896,1768043701416,300.0,0.00015397,2]
[401206897,1768043702689,300.0,0.00015397,2]
[401206898,1768043760305,162.23524889,0.00015298,2]
[401206899,1768043765037,162.23524889,0.00015298,2]
[401206900,1768043780544,3646.29600432,0.00015298,2]
[401206901,1768043780569,10000.01,0.00015298,2]
[401206902,1768043780593,4006.77793222,0.00015298,2]
[401206903,1768043843507,2229.00151417,0.00015298,2]
[401206904,1768043881247,300.0,0.00015397,2]
[401206905,1768043882678,300.0,0.00015397,2]
[401206906,1768043895616,162.23524889,0.00015298,2]
[401206907,1768043895684,1200.0,0.00015397,2]
[401206908,1768043897136,162.23524889,0.00015298,2]
[401206909,1768043929927,5646.53798805,0.00015298,2]
[401206910,1768043929950,8813.20791195,0.00015298,2]
[401206911,1768043935908,1186.80208805,0.00015298,2]